[Event "Delancey UK Schools 2019 U18"]
[Site "Daventry"]
[Date "2019.09.24"]
[Round "6.4"]
[White "Isaksen, Peter A"]
[Black "Willow, Jonah B"]
[Result "0-1"]
[ECO "B22"]
[WhiteElo "1858"]
[BlackElo "2327"]
[Annotator "NA"]
[PlyCount "74"]
[EventDate "2019.09.24"]
[EventCountry "GBR"]
[SourceTitle "playchess.com"]
[Source "ChessBase"]
[SourceQuality "1"]
[TimeControl "40/5400+30:1800+30"]

1. e4 {[%emt 0:10:03]} c5 {[%emt 0:00:02]} 2. c3 {[%emt 0:00:01]} Nf6 {[%emt 0:00:02]} 3. e5 {[%emt 0:00:02]} Nd5 {[%emt 0:00:02]} 4. d4 {[%emt 0:00:01]} cxd4 {[%emt 0:00:02]} 5. Nf3 {[%emt 0:00:01]} Nc6 {[%emt 0:00:02]} 6. cxd4 {[%emt 0:00:02]} g6 {[%emt 0:00:01]} 7. Bc4 {[%emt 0:00:06]} Nb6 {[%emt 0:00:02]} 8. Bb5 {[%emt 1:02:44]} Bg7 {[%emt 1:12:36]} 9. O-O {[%emt 0:00:29]} O-O {[%emt 0:00:24]} 10. Nc3 {[%emt 0:00:26]} d6 {[%emt 0:00:32]} 11. Bf4 {[%emt 0:03:48]} Bg4 {[%emt 0:00:59]} 12. Be2 {[%emt 0:03:25]} dxe5 {[%emt 0:02:34]} 13. dxe5 {[%emt 0:01:11]} Qc8 {[%emt 0:01:29]} 14. Re1 {[%emt 0:04:00]} Rd8 {[%emt 0:01:57]} 15. Qc1 {[%emt 0:00:26]} Nb4 {[%emt 0:01:09]} 16. a3 {[%emt 0:03:44]} Bxf3 {[%emt 0:01:31]} 17. axb4 {[%emt 0:00:25]} Bxe2 {[%emt 0:00:22]} 18. Rxe2 {[%emt 0:00:55]} Qf5 {[%emt 0:00:57]} 19. Bg3 {[%emt 0:01:17]} a6 {[%emt 0:01:19]} 20. Qe1 {[%emt 0:00:41]} Qd3 {[%emt 0:02:24]} 21. e6 {[%emt 0:01:52]} f5 {[%emt 0:01:11]} 22. Bc7 {[%emt 0:00:28]} Bxc3 {[%emt 0:06:35]} 23. bxc3 {[%emt 0:00:35]} Nc4 {[%emt 0:00:21]} 24. Bxd8 {[%emt 0:00:36]} Rxd8 {[%emt 0:00:22]} 25. h3 {[%emt 0:00:55]} f4 {[%emt 0:01:09]} 26. Re4 {[%emt 0:01:48]} f3 {[%emt 0:00:21]} 27. gxf3 {[%emt 0:00:59]} Nd2 {[%emt 0:00:31]} 28. Qe3 {[%emt 0:01:56]} Nxe4 {[%emt 0:00:45]} 29. fxe4 {[%emt 0:00:35]} Qxe3 {[%emt 0:01:13]} 30. fxe3 {[%emt 0:00:22]} Rd3 {[%emt 0:00:21]} 31. Kf2 {[%emt 0:00:21]} Rxc3 {[%emt 0:00:21]} 32. Kf3 {[%emt 0:00:33]} Rb3 {[%emt 0:00:26]} 33. Ra4 {[%emt 0:01:00]} Kg7 {[%emt 0:00:26]} 34. e5 {[%emt 0:00:27]} g5 {[%emt 0:00:34]} 35. h4 {[%emt 0:01:03]} gxh4 {[%emt 0:00:26]} 36. b5 {[%emt 0:00:21]} Rxb5 {[%emt 0:00:27]} 37. Rxh4 {[%emt 0:00:22]} Rxe5 {[%emt 0:00:23]} 0-1

[Event "Delancey UK Schools 2019 U18"]
[Site "Daventry"]
[Date "2019.09.24"]
[Round "6.5"]
[White "Golding, James"]
[Black "Modi, Kishan Jagdish"]
[Result "1-0"]
[ECO "A65"]
[WhiteElo "2075"]
[BlackElo "2004"]
[Annotator "NA"]
[PlyCount "69"]
[EventDate "2019.09.24"]
[EventCountry "GBR"]
[SourceTitle "playchess.com"]
[Source "ChessBase"]
[SourceQuality "1"]
[TimeControl "40/5400+30:1800+30"]

1. d4 {[%emt 1:10:12]} Nf6 {[%emt 1:10:10]} 2. c4 {[%emt 0:00:21]} g6 {[%emt 0:00:21]} 3. Nc3 {[%emt 0:00:21]} Bg7 {[%emt 0:00:21]} 4. e4 {[%emt 0:00:21]} d6 {[%emt 0:00:21]} 5. f3 {[%emt 0:00:21]} O-O {[%emt 0:00:23]} 6. Be3 {[%emt 0:00:21]} c5 {[%emt 0:00:21]} 7. d5 {[%emt 0:00:21]} e6 {[%emt 0:00:31]} 8. Qd2 {[%emt 0:00:22]} exd5 {[%emt 0:00:22]} 9. cxd5 {[%emt 0:00:21]} a6 {[%emt 0:00:29]} 10. a4 {[%emt 0:00:22]} Re8 {[%emt 0:01:01]} 11. Be2 {[%emt 0:00:27]} Nbd7 {[%emt 0:00:29]} 12. Nh3 {[%emt 0:00:22]} Ne5 {[%emt 0:00:28]} 13. Nf2 {[%emt 0:00:22]} b6 {[%emt 0:00:47]} 14. O-O {[%emt 0:00:46]} h5 {[%emt 0:00:43]} 15. Rab1 {[%emt 0:01:30]} Rb8 {[%emt 0:01:25]} 16. b4 {[%emt 0:00:44]} cxb4 {[%emt 0:03:00]} 17. Rxb4 {[%emt 0:00:28]} Ned7 {[%emt 0:00:29]} 18. Nd3 {[%emt 0:01:09]} Qc7 {[%emt 0:02:11]} 19. Rc1 {[%emt 0:02:51]} Nc5 {[%emt 0:00:23]} 20. Nxc5 {[%emt 0:00:23]} bxc5 {[%emt 0:00:29]} 21. Rxb8 {[%emt 0:00:38]} Qxb8 {[%emt 0:00:21]} 22. Rb1 {[%emt 0:00:52]} Qc7 {[%emt 0:00:22]} 23. Nd1 {[%emt 0:05:26]} Bb7 {[%emt 0:04:42]} 24. Rb3 {[%emt 0:01:58]} Rb8 {[%emt 0:00:36]} 25. Nb2 {[%emt 0:02:09]} Nd7 {[%emt 0:04:40]} 26. Nc4 {[%emt 0:01:07]} Ne5 {[%emt 0:00:23]} 27. Qa5 {[%emt 0:02:04]} Qe7 {[%emt 0:02:06]} 28. Qb6 {[%emt 0:02:57]} Nxc4 {[%emt 0:00:26]} 29. Bxc4 {[%emt 0:00:23]} Kh7 {[%emt 0:04:48]} 30. Bxa6 {[%emt 0:00:32]} Bxa6 {[%emt 0:00:21]} 31. Qxb8 {[%emt 0:00:24]} Bc4 {[%emt 0:00:42]} 32. Rb1 {[%emt 0:02:00]} Bxd5 {[%emt 0:01:02]} 33. a5 {[%emt 0:00:49]} Ba2 {[%emt 0:00:31]} 34. Rc1 {[%emt 0:00:29]} Be5 {[%emt 0:00:35]} 35. g3 {[%emt 0:00:52]} 1-0

[Event "Delancey UK Schools 2019 U18"]
[Site "Daventry"]
[Date "2019.09.24"]
[Round "6.6"]
[White "Brown, Tom"]
[Black "Modi, Shyam Jagdish"]
[Result "1/2-1/2"]
[ECO "B07"]
[WhiteElo "2005"]
[BlackElo "2142"]
[Annotator "NA"]
[PlyCount "121"]
[EventDate "2019.09.24"]
[EventCountry "GBR"]
[SourceTitle "playchess.com"]
[Source "ChessBase"]
[SourceQuality "1"]
[TimeControl "40/5400+30:1800+30"]

1. d4 {[%emt 1:10:12]} Nf6 {[%emt 1:10:12]} 2. Nf3 {[%emt 0:00:22]} g6 {[%emt 0:00:21]} 3. Nbd2 {[%emt 0:00:26]} Bg7 {[%emt 0:00:22]} 4. e4 {[%emt 0:00:21]} d6 {[%emt 0:00:22]} 5. Bd3 {[%emt 0:00:23]} O-O {[%emt 0:00:23]} 6. O-O {[%emt 0:00:24]} Nc6 {[%emt 0:00:30]} 7. c3 {[%emt 0:00:23]} e5 {[%emt 0:00:25]} 8. Re1 {[%emt 0:01:34]} Nh5 {[%emt 0:03:48]} 9. Nb3 {[%emt 0:00:55]} a5 {[%emt 0:01:02]} 10. a4 {[%emt 0:01:18]} Nf4 {[%emt 0:01:45]} 11. Bf1 {[%emt 0:01:42]} Qe8 {[%emt 0:02:02]} 12. h3 {[%emt 0:03:09]} Kh8 {[%emt 0:01:28]} 13. Kh2 {[%emt 0:01:12]} Ne7 {[%emt 0:02:49]} 14. g3 {[%emt 0:03:47]} Ne6 {[%emt 0:01:11]} 15. Be3 {[%emt 0:01:45]} f5 {[%emt 0:01:42]} 16. exf5 {[%emt 0:03:23]} gxf5 {[%emt 0:00:42]} 17. dxe5 {[%emt 0:00:57]} dxe5 {[%emt 0:00:22]} 18. Nc5 {[%emt 0:02:01]} Ng6 {[%emt 0:01:18]} 19. Nxe6 {[%emt 0:00:35]} Bxe6 {[%emt 0:00:44]} 20. Bc5 {[%emt 0:01:28]} Rf7 {[%emt 0:01:16]} 21. Qe2 {[%emt 0:01:07]} h6 {[%emt 0:01:42]} 22. h4 {[%emt 0:01:26]} e4 {[%emt 0:02:24]} 23. Bd4 {[%emt 0:01:42]} Bxd4 {[%emt 0:00:39]} 24. Nxd4 {[%emt 0:00:24]} Ne5 {[%emt 0:01:23]} 25. Qh5 {[%emt 0:01:02]} Kh7 {[%emt 0:01:10]} 26. Kg2 {[%emt 0:00:36]} Rf8 {[%emt 0:01:17]} 27. Qxe8 {[%emt 0:00:32]} Raxe8 {[%emt 0:00:22]} 28. f3 {[%emt 0:00:33]} exf3+ {[%emt 0:00:34]} 29. Nxf3 {[%emt 0:00:34]} Bd5 {[%emt 0:00:31]} 30. Be2 {[%emt 0:00:24]} f4 {[%emt 0:00:46]} 31. Rad1 {[%emt 0:00:28]} Bc6 {[%emt 0:00:29]} 32. Bd3+ {[%emt 0:00:31]} Nxd3 {[%emt 0:00:53]} 33. Rxe8 {[%emt 0:00:22]} Rxe8 {[%emt 0:00:35]} 34. Rxd3 {[%emt 0:00:22]} Re2+ {[%emt 0:01:05]} 35. Kf1 {[%emt 0:00:24]} Rxb2 {[%emt 0:00:22]} 36. gxf4 {[%emt 0:00:35]} Bxa4 {[%emt 0:00:21]} 37. Ne5 {[%emt 0:00:36]} b6 {[%emt 0:00:51]} 38. c4 {[%emt 0:00:27]} Kg7 {[%emt 0:00:29]} 39. Rg3+ {[%emt 0:00:35]} Kf6 {[%emt 0:00:37]} 40. Rg6+ {[%emt 0:00:39]} Kf5 {[%emt 0:00:21]} 41. Rxh6 {[%emt 0:30:31]} Rb1+ {[%emt 0:30:21]} 42. Ke2 {[%emt 0:00:29]} Kxf4 {[%emt 0:00:27]} 43. Nd3+ {[%emt 0:00:23]} Ke4 {[%emt 0:00:41]} 44. Re6+ {[%emt 0:00:35]} Kd4 {[%emt 0:00:27]} 45. Nf4 {[%emt 0:00:37]} Kxc4 {[%emt 0:00:41]} 46. h5 {[%emt 0:00:26]} Rh1 {[%emt 0:00:29]} 47. Re7 {[%emt 0:00:29]} Bd1+ {[%emt 0:00:29]} 48. Kd2 {[%emt 0:00:31]} Bxh5 {[%emt 0:00:30]} 49. Rxc7+ {[%emt 0:00:30]} Kb5 {[%emt 0:00:28]} 50. Rh7 {[%emt 0:00:27]} Bf3 {[%emt 0:00:21]} 51. Re7 {[%emt 0:00:39]} Rd1+ {[%emt 0:00:44]} 52. Kc2 {[%emt 0:00:31]} Rd4 {[%emt 0:00:28]} 53. Re5+ {[%emt 0:00:27]} Kc6 {[%emt 0:00:36]} 54. Ne6 {[%emt 0:00:34]} Re4 {[%emt 0:00:30]} 55. Nd4+ {[%emt 0:00:26]} Kb7 {[%emt 0:00:25]} 56. Nxf3 {[%emt 0:00:27]} Rxe5 {[%emt 0:00:34]} 57. Nxe5 {[%emt 0:00:21]} Kc7 {[%emt 0:00:21]} 58. Kb3 {[%emt 0:00:31]} Kd6 {[%emt 0:00:22]} 59. Nc4+ {[%emt 0:00:26]} Kc5 {[%emt 0:00:21]} 60. Nxb6 {[%emt 0:00:23]} Kxb6 {[%emt 0:00:21]} 61. Ka3 {[%emt 0:00:02]} 1/2-1/2

[Event "Delancey UK Schools 2019 U18"]
[Site "Daventry"]
[Date "2019.09.24"]
[Round "6.7"]
[White "Jain, Gautam"]
[Black "Stubbs, Oliver"]
[Result "1-0"]
[ECO "C07"]
[WhiteElo "1900"]
[BlackElo "1835"]
[Annotator "NA"]
[PlyCount "128"]
[EventDate "2019.09.24"]
[EventCountry "GBR"]
[SourceTitle "playchess.com"]
[Source "ChessBase"]
[SourceQuality "1"]
[TimeControl "40/5400+30:1800+30"]

1. e4 {[%emt 1:10:12]} e6 {[%emt 1:10:10]} 2. d4 {[%emt 0:00:24]} d5 {[%emt 0:00:21]} 3. Nd2 {[%emt 0:00:30]} c5 {[%emt 0:00:21]} 4. exd5 {[%emt 0:00:30]} Qxd5 {[%emt 0:00:21]} 5. Ngf3 {[%emt 0:00:24]} cxd4 {[%emt 0:00:21]} 6. Bc4 {[%emt 0:00:26]} Qd6 {[%emt 0:00:21]} 7. O-O {[%emt 0:00:49]} Nf6 {[%emt 0:00:22]} 8. Nb3 {[%emt 0:00:35]} Nc6 {[%emt 0:00:23]} 9. Nbxd4 {[%emt 0:00:59]} Nxd4 {[%emt 0:00:21]} 10. Nxd4 {[%emt 0:00:33]} a6 {[%emt 0:00:21]} 11. Be3 {[%emt 0:01:45]} Qc7 {[%emt 0:00:21]} 12. Qe2 {[%emt 0:01:16]} Bd6 {[%emt 0:00:22]} 13. h3 {[%emt 0:00:47]} O-O {[%emt 0:00:22]} 14. Bb3 {[%emt 0:01:11]} Bd7 {[%emt 0:00:45]} 15. Bg5 {[%emt 0:00:54]} Rac8 {[%emt 0:02:48]} 16. Rad1 {[%emt 0:01:09]} Bh2+ {[%emt 0:05:02]} 17. Kh1 {[%emt 0:00:30]} Bf4 {[%emt 0:00:22]} 18. Bxf6 {[%emt 0:04:22]} gxf6 {[%emt 0:00:21]} 19. Rfe1 {[%emt 0:06:11]} Kh8 {[%emt 0:01:25]} 20. Qh5 {[%emt 0:01:34]} f5 {[%emt 0:10:16]} 21. Qh4 {[%emt 0:01:52]} Be5 {[%emt 0:01:26]} 22. Rxe5 {[%emt 0:02:43]} Qxe5 {[%emt 0:00:23]} 23. Nf3 {[%emt 0:00:21]} Qg7 {[%emt 0:02:44]} 24. Rxd7 {[%emt 0:00:22]} Rg8 {[%emt 0:00:21]} 25. g3 {[%emt 0:01:05]} Rce8 {[%emt 0:01:20]} 26. c3 {[%emt 0:00:29]} b5 {[%emt 0:00:43]} 27. Kh2 {[%emt 0:01:06]} h6 {[%emt 0:00:25]} 28. Qh5 {[%emt 0:00:48]} Rgf8 {[%emt 0:00:39]} 29. Qh4 {[%emt 0:00:29]} Rg8 {[%emt 0:00:28]} 30. Qd4 {[%emt 0:00:22]} Qxd4 {[%emt 0:00:37]} 31. Nxd4 {[%emt 0:00:21]} Rgf8 {[%emt 0:00:32]} 32. Ra7 {[%emt 0:00:33]} Ra8 {[%emt 0:00:21]} 33. Rxa8 {[%emt 0:00:25]} Rxa8 {[%emt 0:00:21]} 34. Kg2 {[%emt 0:00:22]} Kg7 {[%emt 0:00:23]} 35. Kf3 {[%emt 0:00:22]} Kf6 {[%emt 0:00:22]} 36. Ke3 {[%emt 0:00:27]} Rd8 {[%emt 0:00:24]} 37. f4 {[%emt 0:00:48]} Rg8 {[%emt 0:00:20]} 38. Kf3 {[%emt 0:00:45]} Rc8 {[%emt 0:00:33]} 39. a3 {[%emt 0:00:30]} Ke7 {[%emt 0:00:23]} 40. Bd1 {[%emt 0:00:31]} Kd6 {[%emt 0:00:38]} 41. Ke3 {[%emt 0:30:33]} Rg8 {[%emt 0:30:33]} 42. Kf2 {[%emt 0:00:30]} Kc5 {[%emt 0:00:21]} 43. Be2 {[%emt 0:00:26]} Kd6 {[%emt 0:00:28]} 44. Nf3 {[%emt 0:00:25]} f6 {[%emt 0:00:21]} 45. Nd4 {[%emt 0:00:15]} Rb8 {[%emt 0:00:17]} 46. Nc2 {[%emt 0:00:34]} Kc5 {[%emt 0:00:57]} 47. g4 {[%emt 0:00:31]} fxg4 {[%emt 0:00:24]} 48. hxg4 {[%emt 0:00:23]} Rd8 {[%emt 0:00:26]} 49. Nd4 {[%emt 0:00:27]} Rd6 {[%emt 0:00:30]} 50. Ke3 {[%emt 0:00:33]} Rb6 {[%emt 0:00:34]} 51. Ke4 {[%emt 0:00:35]} Rd6 {[%emt 0:00:27]} 52. Bd1 {[%emt 0:00:47]} a5 {[%emt 0:01:22]} 53. Bb3 {[%emt 0:00:26]} e5 {[%emt 0:00:38]} 54. fxe5 {[%emt 0:00:25]} fxe5 {[%emt 0:00:21]} 55. Kxe5 {[%emt 0:00:29]} Rg6 {[%emt 0:00:31]} 56. Ne6+ {[%emt 0:00:28]} Kb6 {[%emt 0:00:27]} 57. Kf5 {[%emt 0:00:26]} Rg8 {[%emt 0:00:25]} 58. Ba2 {[%emt 0:00:50]} b4 {[%emt 0:00:41]} 59. cxb4 {[%emt 0:00:27]} axb4 {[%emt 0:00:21]} 60. axb4 {[%emt 0:00:26]} Ra8 {[%emt 0:00:26]} 61. Bc4 {[%emt 0:00:27]} Ra4 {[%emt 0:00:28]} 62. b3 {[%emt 0:00:27]} Ra1 {[%emt 0:00:46]} 63. Kg6 {[%emt 0:00:40]} Rh1 {[%emt 0:00:22]} 64. b5 {[%emt 0:00:28]} Kb7 {[%emt 0:00:22]} 1-0

[Event "Delancey UK Schools 2019 U18"]
[Site "Daventry"]
[Date "2019.09.24"]
[Round "6.8"]
[White "Stoyanov, Viktor"]
[Black "Guha, Chirag"]
[Result "1-0"]
[ECO "A13"]
[WhiteElo "2272"]
[BlackElo "1769"]
[Annotator "NA"]
[PlyCount "117"]
[EventDate "2019.09.24"]
[EventCountry "GBR"]
[SourceTitle "playchess.com"]
[Source "ChessBase"]
[SourceQuality "1"]
[TimeControl "40/5400+30:1800+30"]

1. Nf3 {[%emt 1:10:13]} d5 {[%emt 1:10:15]} 2. e3 {[%emt 0:00:22]} Nf6 {[%emt 0:00:42]} 3. c4 {[%emt 0:00:21]} e6 {[%emt 0:00:25]} 4. b3 {[%emt 0:00:23]} c5 {[%emt 0:01:10]} 5. Bb2 {[%emt 0:00:23]} Nc6 {[%emt 0:00:30]} 6. cxd5 {[%emt 0:00:46]} exd5 {[%emt 0:00:23]} 7. d4 {[%emt 0:00:24]} cxd4 {[%emt 0:01:02]} 8. Nxd4 {[%emt 0:00:24]} Bb4+ {[%emt 0:00:50]} 9. Bc3 {[%emt 0:01:10]} Bg4 {[%emt 0:04:03]} 10. Nxc6 {[%emt 0:02:17]} bxc6 {[%emt 0:00:52]} 11. Qd4 {[%emt 0:00:25]} Bxc3+ {[%emt 0:01:06]} 12. Nxc3 {[%emt 0:00:23]} O-O {[%emt 0:01:18]} 13. h3 {[%emt 0:02:28]} Bh5 {[%emt 0:01:00]} 14. Be2 {[%emt 0:00:43]} c5 {[%emt 0:03:40]} 15. Qd2 {[%emt 0:01:16]} d4 {[%emt 0:01:12]} 16. Bxh5 {[%emt 0:01:54]} Nxh5 {[%emt 0:01:08]} 17. Na4 {[%emt 0:00:36]} dxe3 {[%emt 0:00:51]} 18. Qxd8 {[%emt 0:00:22]} exf2+ {[%emt 0:00:23]} 19. Kxf2 {[%emt 0:00:23]} Rfxd8 {[%emt 0:00:50]} 20. Rhd1 {[%emt 0:00:25]} Rdc8 {[%emt 0:01:14]} 21. Rac1 {[%emt 0:00:25]} Nf6 {[%emt 0:00:22]} 22. Kf3 {[%emt 0:00:31]} g6 {[%emt 0:01:40]} 23. Nxc5 {[%emt 0:01:47]} Kg7 {[%emt 0:01:22]} 24. Na6 {[%emt 0:00:38]} h5 {[%emt 0:02:07]} 25. b4 {[%emt 0:00:52]} Rxc1 {[%emt 0:00:57]} 26. Rxc1 {[%emt 0:00:21]} Rd8 {[%emt 0:00:38]} 27. a4 {[%emt 0:02:26]} Rd3+ {[%emt 0:01:02]} 28. Ke2 {[%emt 0:00:24]} Ra3 {[%emt 0:01:14]} 29. a5 {[%emt 0:00:24]} Nd5 {[%emt 0:00:52]} 30. Rc4 {[%emt 0:01:27]} g5 {[%emt 0:01:01]} 31. Kd2 {[%emt 0:02:55]} Ra2+ {[%emt 0:00:59]} 32. Rc2 {[%emt 0:00:35]} Ra3 {[%emt 0:00:32]} 33. Rc5 {[%emt 0:00:28]} Ra2+ {[%emt 0:00:37]} 34. Kc1 {[%emt 0:00:26]} Nf4 {[%emt 0:00:30]} 35. Rxg5+ {[%emt 0:00:25]} Kf6 {[%emt 0:00:23]} 36. Rg3 {[%emt 0:00:54]} Nxg2 {[%emt 0:00:28]} 37. Kb1 {[%emt 0:00:58]} Rf2 {[%emt 0:00:29]} 38. b5 {[%emt 0:00:24]} Re2 {[%emt 0:00:36]} 39. Rb3 {[%emt 0:00:37]} Re6 {[%emt 0:00:28]} 40. b6 {[%emt 0:00:22]} axb6 {[%emt 0:00:22]} 41. axb6 {[%emt 0:30:21]} Nf4 {[%emt 0:30:32]} 42. b7 {[%emt 0:00:23]} Rxa6 {[%emt 0:00:24]} 43. b8=Q {[%emt 0:00:24]} Ne6 {[%emt 0:00:25]} 44. Rf3+ {[%emt 0:00:23]} Kg7 {[%emt 0:00:24]} 45. Qe5+ {[%emt 0:00:24]} Kf8 {[%emt 0:00:25]} 46. Qxh5 {[%emt 0:00:27]} Rb6+ {[%emt 0:00:23]} 47. Kc1 {[%emt 0:00:22]} Rc6+ {[%emt 0:00:22]} 48. Kd1 {[%emt 0:00:21]} Rd6+ {[%emt 0:00:23]} 49. Ke1 {[%emt 0:00:21]} Rd7 {[%emt 0:00:23]} 50. Qh6+ {[%emt 0:00:27]} Ke8 {[%emt 0:00:25]} 51. h4 {[%emt 0:00:28]} Re7 {[%emt 0:00:23]} 52. Re3 {[%emt 0:00:25]} Kd7 {[%emt 0:00:24]} 53. Qf6 {[%emt 0:00:23]} Ke8 {[%emt 0:00:23]} 54. h5 {[%emt 0:00:24]} Kf8 {[%emt 0:00:24]} 55. h6 {[%emt 0:00:22]} Ke8 {[%emt 0:00:23]} 56. h7 {[%emt 0:00:22]} Kd7 {[%emt 0:00:26]} 57. h8=Q {[%emt 0:00:26]} Re8 {[%emt 0:00:24]} 58. Qxf7+ {[%emt 0:00:22]} Re7 {[%emt 0:00:21]} 59. Qhe8+ {[%emt 0:00:22] Kc6} 1-0

[Event "Delancey UK Schools 2019 U18"]
[Site "Daventry"]
[Date "2019.09.24"]
[Round "6.9"]
[White "Rathbone-Jones, Ifan"]
[Black "Carroll, Thomas"]
[Result "1/2-1/2"]
[ECO "D02"]
[WhiteElo "1879"]
[BlackElo "2036"]
[Annotator "NA"]
[PlyCount "73"]
[EventDate "2019.09.24"]
[EventCountry "GBR"]
[SourceTitle "playchess.com"]
[Source "ChessBase"]
[SourceQuality "1"]
[TimeControl "40/5400+30:1800+30"]

1. d4 {[%emt 1:10:11]} d5 {[%emt 1:10:11]} 2. Bf4 {[%emt 0:00:21]} c5 {[%emt 0:00:30]} 3. e3 {[%emt 0:00:22]} Nf6 {[%emt 0:00:40]} 4. c3 {[%emt 0:00:24]} Qb6 {[%emt 0:01:13]} 5. Qc2 {[%emt 0:01:03]} Nc6 {[%emt 0:00:39]} 6. Nf3 {[%emt 0:00:25]} Bf5 {[%emt 0:02:01]} 7. dxc5 {[%emt 0:01:15]} Bxc2 {[%emt 0:00:57]} 8. cxb6 {[%emt 0:00:22]} axb6 {[%emt 0:00:36]} 9. Na3 {[%emt 0:00:23]} Bf5 {[%emt 0:01:18]} 10. Nb5 {[%emt 0:01:03]} Kd7 {[%emt 0:01:51]} 11. Nbd4 {[%emt 0:01:44]} Be4 {[%emt 0:03:35]} 12. Nxc6 {[%emt 0:01:33]} bxc6 {[%emt 0:01:23]} 13. Ne5+ {[%emt 0:02:45]} Kc8 {[%emt 0:01:35]} 14. Nxf7 {[%emt 0:00:30]} Rg8 {[%emt 0:00:30]} 15. Ne5 {[%emt 0:00:30]} Kb7 {[%emt 0:00:42]} 16. f3 {[%emt 0:00:30]} Bf5 {[%emt 0:00:30]} 17. g4 {[%emt 0:00:26]} Be6 {[%emt 0:01:11]} 18. Bd3 {[%emt 0:03:08]} g5 {[%emt 0:01:40]} 19. Bg3 {[%emt 0:00:57]} h5 {[%emt 0:01:35]} 20. h3 {[%emt 0:01:32]} Bg7 {[%emt 0:01:20]} 21. a3 {[%emt 0:01:39]} Nd7 {[%emt 0:01:43]} 22. Nxd7 {[%emt 0:01:21]} Bxd7 {[%emt 0:00:22]} 23. gxh5 {[%emt 0:00:31]} Raf8 {[%emt 0:01:33]} 24. Ke2 {[%emt 0:02:03]} Be8 {[%emt 0:01:20]} 25. Bg6 {[%emt 0:00:22]} Bxg6 {[%emt 0:00:34]} 26. hxg6 {[%emt 0:00:21]} Bf6 {[%emt 0:00:50]} 27. Rag1 {[%emt 0:02:32]} Rxg6 {[%emt 0:00:34]} 28. Bf2 {[%emt 0:00:58]} Rh6 {[%emt 0:00:39]} 29. f4 {[%emt 0:01:09]} gxf4 {[%emt 0:00:37]} 30. exf4 {[%emt 0:00:23]} Rfh8 {[%emt 0:01:39]} 31. Rg3 {[%emt 0:00:37]} Kc7 {[%emt 0:00:32]} 32. Rf3 {[%emt 0:00:58]} c5 {[%emt 0:00:50]} 33. Kd3 {[%emt 0:01:05]} Kd6 {[%emt 0:00:42]} 34. Be3 {[%emt 0:00:46]} Rh5 {[%emt 0:00:32]} 35. b4 {[%emt 0:01:25]} c4+ {[%emt 0:00:21]} 36. Kc2 {[%emt 0:00:22]} b5 {[%emt 0:00:35]} 37. Bc5+ {[%emt 0:01:32]} 1/2-1/2

[Event "Delancey UK Schools 2019 U18"]
[Site "Daventry"]
[Date "2019.09.24"]
[Round "6.10"]
[White "Jaufarally, Nadia"]
[Black "Stewart, Lilya"]
[Result "1-0"]
[ECO "B35"]
[WhiteElo "1991"]
[BlackElo "1567"]
[Annotator "NA"]
[PlyCount "35"]
[EventDate "2019.09.24"]
[EventCountry "GBR"]
[SourceTitle "playchess.com"]
[Source "ChessBase"]
[SourceQuality "1"]
[TimeControl "40/5400+30:1800+30"]

1. e4 {[%emt 1:10:12]} c5 {[%emt 1:10:10]} 2. Nf3 {[%emt 0:00:22]} Nc6 {[%emt 0:00:27]} 3. d4 {[%emt 0:00:24]} cxd4 {[%emt 0:00:23]} 4. Nxd4 {[%emt 0:00:21]} g6 {[%emt 0:00:20]} 5. Nc3 {[%emt 0:00:31]} Bg7 {[%emt 0:00:21]} 6. Be3 {[%emt 0:00:25]} Nf6 {[%emt 0:00:24]} 7. Bc4 {[%emt 0:02:07]} O-O {[%emt 0:00:19]} 8. Bb3 {[%emt 0:00:28]} a5 {[%emt 0:00:24]} 9. f3 {[%emt 0:00:40]} Qb6 {[%emt 0:00:33]} 10. Nf5 {[%emt 0:00:53]} Qa6 {[%emt 0:03:12]} 11. Nxg7 {[%emt 0:00:44]} Kxg7 {[%emt 0:00:23]} 12. Qd2 {[%emt 0:00:25]} Kg8 {[%emt 0:01:07]} 13. Bh6 {[%emt 0:02:37]} Rd8 {[%emt 0:01:39]} 14. Nd5 {[%emt 0:01:27]} Ne8 {[%emt 0:04:37]} 15. Qf4 {[%emt 0:02:42]} Nd6 {[%emt 0:07:49]} 16. Nxe7+ {[%emt 0:02:05]} Nxe7 {[%emt 0:01:22]} 17. Qf6 {[%emt 0:00:28]} Ne8 {[%emt 0:01:01]} 18. Bxf7# {[%emt 0:00:04]} 1-0

[Event "Delancey UK Schools 2019 U18"]
[Site "Daventry"]
[Date "2019.09.24"]
[Round "6.13"]
[White "Nayak, Raghav"]
[Black "Kirklys, Domantas"]
[Result "1-0"]
[ECO "C44"]
[WhiteElo "1914"]
[BlackElo "1125"]
[Annotator "NA"]
[PlyCount "69"]
[EventDate "2019.09.24"]
[EventCountry "GBR"]
[SourceTitle "playchess.com"]
[Source "ChessBase"]
[SourceQuality "1"]
[TimeControl "40/5400+30:1800+30"]

1. e4 {[%emt 1:10:12]} e5 {[%emt 1:10:10]} 2. Nf3 {[%emt 0:00:31]} Nc6 {[%emt 0:00:22]} 3. Bb5 {[%emt 0:00:22]} d6 {[%emt 0:00:22]} 4. d4 {[%emt 0:00:25]} Bd7 {[%emt 0:00:51]} 5. c3 {[%emt 0:00:35]} Nf6 {[%emt 0:00:41]} 6. Nbd2 {[%emt 0:00:31]} Be7 {[%emt 0:00:32]} 7. O-O {[%emt 0:00:32]} O-O {[%emt 0:00:22]} 8. Bd3 {[%emt 0:01:00]} exd4 {[%emt 0:00:56]} 9. cxd4 {[%emt 0:00:31]} Bg4 {[%emt 0:00:44]} 10. h3 {[%emt 0:00:33]} Bh5 {[%emt 0:00:30]} 11. g4 {[%emt 0:00:33]} Bg6 {[%emt 0:00:36]} 12. Qe2 {[%emt 0:01:29]} h6 {[%emt 0:01:45]} 13. Rd1 {[%emt 0:01:02]} Nh7 {[%emt 0:01:27]} 14. Nf1 {[%emt 0:00:58]} Ng5 {[%emt 0:01:05]} 15. Nxg5 {[%emt 0:02:27]} Bxg5 {[%emt 0:00:24]} 16. Bc2 {[%emt 0:01:13]} d5 {[%emt 0:03:19]} 17. f4 {[%emt 0:00:40]} Bh4 {[%emt 0:01:50]} 18. f5 {[%emt 0:00:47]} Bh7 {[%emt 0:00:41]} 19. e5 {[%emt 0:01:01]} Bg5 {[%emt 0:02:40]} 20. Nh2 {[%emt 0:02:51]} Bxc1 {[%emt 0:00:49]} 21. Raxc1 {[%emt 0:00:21]} f6 {[%emt 0:00:41]} 22. e6 {[%emt 0:00:31]} Qd6 {[%emt 0:00:53]} 23. Kg2 {[%emt 0:00:57]} Ne7 {[%emt 0:01:43]} 24. Nf3 {[%emt 0:01:29]} b6 {[%emt 0:01:34]} 25. Nh4 {[%emt 0:00:52]} Rfe8 {[%emt 0:01:35]} 26. Bd3 {[%emt 0:00:56]} c6 {[%emt 0:00:50]} 27. Rc3 {[%emt 0:00:35]} Rac8 {[%emt 0:00:54]} 28. Rdc1 {[%emt 0:00:22]} Qb4 {[%emt 0:00:51]} 29. Qf2 {[%emt 0:00:56]} Rc7 {[%emt 0:01:24]} 30. Qf4 {[%emt 0:01:38]} Rec8 {[%emt 0:00:40]} 31. Ba6 {[%emt 0:01:15]} g5 {[%emt 0:03:04]} 32. fxg6 {[%emt 0:00:29]} Nxg6 {[%emt 0:01:06]} 33. Nxg6 {[%emt 0:00:41]} Bxg6 {[%emt 0:00:24]} 34. Bxc8 {[%emt 0:01:09]} Rxc8 {[%emt 0:00:24]} 35. Qd2 {[%emt 0:01:30]} 1-0